bitfinex/quotes_ETHUSD_20250913
["timestamp","ask_amount","ask_price","bid_price","bid_amount"]
[1757774949498,0.2884,4689.4,4689.1,0.001]
[1757774950118,0.4702,4689.3,4689.1,0.001]
[1757774950525,0.4702,4689.2,4689.1,0.001]
[1757774951001,0.7586,4689.2,4689.1,0.001]
[1757774951430,1.2208,4689.2,4689.1,0.001]
[1757774951599,0.7586,4689.2,4689.1,0.001]
[1757774953239,0.4702,4689.2,4689.1,0.001]
[1757774955140,0.1064,4689.5,4689.1,0.001]
[1757774956442,0.4644,4689.4,4689.1,0.001]
[1757774956856,0.4644,4689.3,4689.1,0.001]
[1757774957640,0.4644,4689.2,4689.1,0.001]
[1757774958037,0.5708,4689.5,4689.1,0.001]
[1757774958356,0.1064,4689.5,4689.1,0.001]
[1757774958565,0.4644,4689.4,4689.1,0.001]
[1757774959035,0.1064,4689.5,4689.1,0.02232605]
[1757774959230,0.4644,4689.3,4689.1,0.02232605]
[1757774959426,0.7659,4689.2,4689.1,0.001]
[1757774959630,0.7659,4689.2,4689.1,0.11007627]
[1757774959826,1.2168,4689.2,4689.1,0.11007627]
[1757774960255,0.7659,4689.2,4689.1,0.11007627]
[1757774961979,1.2168,4689.2,4689.1,0.11007627]
[1757774963463,0.7659,4689.2,4689.1,0.11007627]
[1757774963673,0.1064,4689.5,4689.1,0.11007627]
[1757774963869,0.1064,4689.5,4689.2,0.02132559]
[1757774964236,0.4644,4689.4,4689.2,0.02132559]
[1757774964655,0.1064,4689.5,4689.2,0.02132559]
[1757774965067,0.4644,4689.4,4689.1,0.11007627]
[1757774965257,0.1064,4689.5,4689.2,0.02132559]
[1757774965463,0.4644,4689.3,4689.2,0.02132559]
[1757774965937,1.2168,4689.3,4689.1,0.11007627]
[1757774966137,0.1064,4689.5,4689.1,0.11007627]
[1757774966338,1.638,4690.1,4689.2,0.792]
[1757774966571,0.4644,4690.0,4689.4,0.1064]
[1757774967257,0.4644,4690.0,4689.4,0.74600089]
[1757774967439,1.638,4690.1,4689.5,0.15390009]
[1757774967641,1.638,4690.1,4689.6,0.02132378]
[1757774967879,0.9153,4690.0,4689.5,0.15390009]
[1757774968242,0.4509,4690.0,4689.5,0.15390009]
[1757774968466,0.4644,4689.9,4689.5,0.15390009]
[1757774969744,1.638,4690.1,4689.5,0.15390009]
[1757774969940,0.4644,4690.0,4689.5,0.15390009]
[1757774970142,0.3015,4689.6,4689.4,0.74600089]
[1757774970542,0.4644,4689.5,4689.4,0.74600089]
[1757774972349,5.21,4690.1,4689.4,0.76732557]
[1757774972778,5.6744,4690.1,4689.4,0.74600089]
[1757774972990,0.4644,4690.0,4689.4,0.89990098]
[1757774973196,5.6609,4690.1,4689.4,0.89990098]
[1757774973485,0.4644,4689.9,4689.4,0.89990098]
[1757774973690,0.9153,4689.8,4689.4,0.89990098]
[1757774973854,0.4644,4689.7,4689.4,0.89990098]
[1757774974256,0.4644,4689.6,4689.4,0.89990098]
[1757774976205,1.638,4690.1,4689.4,0.89990098]
[1757774976206,0.002,4690.1,4689.4,0.89990098]
[1757774976489,0.002,4690.1,4689.6,0.792]
[1757774976655,0.002,4690.1,4690.0,0.1064]
[1757774977895,0.002,4690.1,4690.0,0.5708]
[1757774985002,0.4664,4690.1,4690.0,0.5708]
[1757774985302,0.002,4690.1,4690.0,0.5708]
[1757774986503,0.4637,4690.1,4690.0,0.5708]
[1757774988022,1.2583,4690.1,4690.0,0.5708]
[1757774988418,1.2583,4690.1,4689.4,0.1064]
[1757774988720,1.2583,4690.1,4689.5,0.63960089]
[1757774988919,0.9309,4690.0,4689.5,0.63960089]
[1757774989416,0.304,4689.6,4689.5,0.63960089]
[1757774989732,1.2349,4689.6,4689.5,0.63960089]
[1757774991718,0.4398,4689.6,4689.5,0.63960089]
[1757774991924,0.4398,4689.6,4689.5,0.66092512]
[1757774993323,0.4931,4690.1,4689.5,0.66092512]
[1757774993324,0.4398,4689.9,4689.5,0.66092512]
[1757774993529,0.4931,4690.1,4689.5,0.66092512]
[1757774993829,0.4398,4690.0,4689.5,0.66092512]
[1757774994425,0.9309,4689.9,4689.5,0.66092512]
[1757774994624,0.4911,4689.9,4689.5,0.66092512]
[1757774994831,0.4398,4689.8,4689.5,0.66092512]
[1757774995032,0.4911,4689.9,4689.5,0.66092512]
[1757774995332,0.4398,4689.7,4689.5,0.66092512]
[1757774995539,0.002,4690.1,4689.5,0.66092512]
[1757774995830,0.4398,4690.0,4689.5,0.66092512]
[1757774996129,0.4398,4689.9,4689.5,0.66092512]
[1757774996428,0.4398,4689.8,4689.5,0.66092512]
[1757774997232,0.4398,4689.7,4689.5,0.66092512]
[1757774997531,0.002,4690.1,4689.5,0.66092512]
[1757774997734,0.4398,4689.6,4689.5,0.66092512]
[1757774998071,1.2349,4689.6,4689.5,0.63960089]
[1757775001525,0.002,4690.1,4689.5,1.43160089]
[1757775001730,0.4398,4690.0,4689.7,0.1064]
[1757775001937,0.002,4690.1,4689.8,0.02132287]
[1757775002770,0.002,4690.1,4689.9,0.15390009]
[1757775002932,0.002,4690.1,4690.0,0.12772196]
[1757775003119,0.002,4690.1,4690.0,0.1064]
[1757775006357,0.4418,4690.1,4690.0,0.1064]
[1757775006856,0.002,4690.1,4690.0,0.1074]
[1757775007022,0.4418,4690.1,4690.0,0.1074]
[1757775008932,0.002,4690.1,4690.0,0.1074]
[1757775009142,1.2369,4690.1,4690.0,0.26130009]
[1757775012456,0.4418,4690.1,4690.0,0.26130009]
[1757775013668,0.7458,4690.1,4690.0,0.26130009]
[1757775013834,1.2369,4690.1,4690.0,0.26130009]
[1757775014761,0.4418,4690.1,4690.0,0.26130009]
[1757775017389,0.7538,4690.1,4690.0,0.26130009]
[1757775017688,0.002,4690.1,4690.0,0.26130009]
[1757775018788,0.4616,4690.1,4690.0,0.26130009]
[1757775019291,1.2575,4690.1,4690.0,0.26130009]
[1757775020184,0.7736,4690.1,4690.0,0.26130009]
[1757775020371,0.4616,4690.1,4690.0,0.26130009]
[1757775020891,0.002,4690.1,4690.0,0.26130009]
[1757775021289,0.4616,4690.1,4690.0,0.26130009]
[1757775021494,1.2575,4690.1,4690.0,0.26130009]
[1757775023466,0.4616,4690.1,4690.0,0.26130009]
[1757775024203,1.2575,4690.1,4690.0,0.26130009]
[1757775025167,0.7736,4690.1,4690.0,0.26130009]
[1757775025493,0.002,4690.1,4690.0,0.26130009]
[1757775026186,0.4317,4690.1,4690.0,0.26130009]
[1757775027900,1.1829,4690.1,4690.0,0.001]
[1757775032533,0.002,4690.1,4690.0,0.001]
[1757775032755,0.002,4690.6,4690.1,3.792]
[1757775032886,0.002,4690.6,4690.3,0.792]
[1757775033220,0.002,4690.6,4690.5,0.8984]
[1757775033728,0.002,4691.0,4690.6,5.92391294]
[1757775033901,0.002,4691.0,4690.8,0.792]
[1757775034219,0.002,4691.0,4690.9,33.91971787]
[1757775034422,0.002,4691.0,4690.9,36.03622852]
[1757775034624,0.002,4691.0,4690.9,36.12147157]
[1757775034818,0.002,4691.0,4690.9,40.06605864]
[1757775035284,0.002,4691.0,4690.9,39.95965864]
[1757775035482,0.002,4691.5,4691.4,5.92355987]
[1757775035717,0.002,4691.5,4691.4,37.359]
[1757775035882,0.002,4691.5,4691.4,39.49055987]
[1757775036083,0.002,4691.5,4691.4,39.66735987]
[1757775036300,0.002,4691.5,4691.4,37.5358]
[1757775036500,0.002,4691.5,4691.4,39.67362852]
[1757775036700,0.002,4691.5,4691.4,39.49682852]
[1757775037620,0.002,4691.5,4691.4,41.62838839]
[1757775037822,0.002,4691.5,4691.4,39.49682852]
[1757775038712,0.002,4691.5,4691.4,41.62838839]
[1757775040023,0.8951,4692.4,4691.7,3.792]
[1757775040223,0.8951,4692.4,4691.9,3.792]
[1757775040224,0.4297,4692.4,4691.9,3.792]
[1757775040425,0.4297,4692.7,4691.9,3.792]
[1757775040626,0.4297,4692.7,4691.9,5.92333272]
[1757775040993,0.4297,4692.7,4691.9,6.38873272]
[1757775042031,0.4654,4692.8,4691.9,4.2574]
[1757775042322,0.4297,4692.7,4691.9,6.38873272]
[1757775042510,0.4297,4692.7,4691.9,7.87934024]
[1757775042916,0.002,4692.5,4691.9,7.87934024]
[1757775043113,0.002,4692.5,4692.2,0.792]
[1757775043341,0.4654,4693.3,4692.6,3.792]
[1757775043541,0.4297,4693.0,4692.8,3.0]
[1757775043717,0.4654,4693.3,4692.9,0.02130878]
[1757775043916,0.4654,4693.2,4693.1,3.0]
[1757775044118,0.7512,4693.2,4693.1,3.02130787]
[1757775044318,1.1809,4693.2,4693.1,3.02130787]
[1757775045218,1.1809,4693.2,4693.1,3.12770787]
[1757775047022,1.1809,4693.2,4693.1,3.1064]
[1757775047227,1.1809,4693.2,4693.1,3.94584232]
[1757775056545,1.1809,4693.2,4693.1,0.1064]
[1757775056745,1.1809,4693.2,4693.1,3.1064]
[1757775061073,1.1829,4693.2,4693.1,3.1064]
[1757775065341,1.1829,4693.2,4693.1,6.6684]
[1757775071389,1.1829,4693.2,4693.1,3.0]
[1757775071892,0.002,4693.2,4693.1,3.0]
[1757775072080,0.4314,4693.2,4693.1,3.02130787]
[1757775073280,0.7205,4693.2,4693.1,3.02130787]
[1757775073479,1.1735,4693.2,4693.1,3.02130787]
[1757775074026,0.7205,4693.2,4693.1,3.02130787]
[1757775074382,1.1735,4693.2,4693.1,3.02130787]
[1757775076684,0.002,4693.2,4693.1,3.02130787]
[1757775076878,0.4415,4693.2,4693.1,3.02130787]
[1757775077379,1.2102,4693.2,4693.1,3.02130787]
[1757775080834,1.2102,4693.2,4693.1,3.0]
[1757775081037,1.2102,4693.2,4693.1,3.02130787]
[1757775082409,1.2102,4693.2,4693.1,3.0]
[1757775083520,1.2102,4693.2,4693.1,3.02130787]
[1757775085643,1.2102,4693.2,4693.1,3.0]
[1757775088144,1.34186,4693.2,4692.5,0.001]
[1757775088443,0.1064,4693.0,4692.8,3.0]
[1757775088643,1.2082,4692.9,4692.6,3.0]
[1757775088941,0.9215,4692.8,4692.6,3.0]
[1757775089109,1.2082,4692.7,4692.6,3.0]
[1757775090023,1.2082,4692.7,4692.5,3.001]
[1757775090223,0.9215,4692.6,4692.5,3.001]
[1757775090423,1.2082,4692.6,4692.5,3.001]
[1757775091914,1.2082,4692.6,4692.5,0.001]
[1757775104986,3.47067478,4692.6,4692.5,0.001]
[1757775106669,7.03067478,4692.6,4692.5,0.001]
[1757775107640,3.47067478,4692.6,4692.5,0.001]
[1757775107841,7.02967478,4692.6,4692.5,0.001]
[1757775109903,4.89866,4692.6,4692.5,0.001]
[1757775112306,7.02967478,4692.6,4692.5,0.001]
[1757775112806,4.89866,4692.6,4692.5,0.001]
[1757775113782,4.90066,4692.6,4692.5,0.001]
[1757775114303,1.34166,4692.6,4692.5,0.001]
[1757775114467,4.90066,4692.6,4692.5,0.001]
[1757775114668,7.03167478,4692.6,4692.5,0.001]
[1757775114900,4.90066,4692.6,4692.5,0.001]
[1757775115317,7.03167478,4692.6,4692.5,0.001]
[1757775117143,4.90066,4692.6,4692.5,0.001]
[1757775117418,0.002,4692.6,4692.5,0.001]
[1757775117568,3.561,4692.6,4692.5,0.001]
[1757775118284,4.009,4692.6,4692.5,0.001]
[1757775120205,4.7624,4692.6,4692.5,0.001]
[1757775121900,1.2034,4692.6,4692.5,0.001]
[1757775122217,3.561,4692.6,4692.5,0.001]
[1757775122571,4.3118,4692.6,4692.5,0.001]
[1757775122774,1.2034,4692.6,4692.5,0.001]
[1757775123090,4.7624,4692.6,4692.5,0.001]
[1757775124008,6.89341478,4692.6,4692.5,0.001]
[1757775124193,4.7624,4692.6,4692.5,0.001]
[1757775125507,7.95933921,4692.6,4692.5,0.001]
[1757775126315,8.15848715,4692.6,4692.5,0.001]
[1757775129127,6.02747237,4692.6,4692.5,0.001]
[1757775129408,4.96154794,4692.6,4692.5,0.001]
[1757775129614,7.09256272,4692.6,4692.5,0.001]
[1757775131833,7.09156272,4692.6,4692.5,0.001]
[1757775132039,6.89241478,4692.6,4692.5,0.001]
[1757775134393,7.09190985,4692.6,4692.5,0.001]
[1757775134795,6.89241478,4692.6,4692.5,0.001]
[1757775135000,7.97819873,4692.6,4692.5,0.001]
[1757775135527,8.0634494,4692.6,4692.5,0.001]
[1757775135692,4.70495097,4692.6,4692.5,0.001]
[1757775135898,8.26295097,4692.6,4692.5,0.001]
[1757775137722,2.57393619,4692.6,4692.5,0.001]
[1757775137922,7.17716702,4692.6,4692.5,0.001]
[1757775138127,7.17715683,4692.6,4692.5,0.001]
[1757775140966,7.17615683,4692.6,4692.5,0.001]
[1757775141944,7.17616409,4692.6,4692.5,0.001]
[1757775144315,7.29587408,4692.6,4692.5,0.001]
[1757775144521,8.82544957,4692.6,4692.5,0.001]
[1757775144957,9.0249216,4692.6,4692.5,0.001]
[1757775145141,10.84971377,4692.6,4692.5,0.001]
[1757775145332,10.39111708,4692.6,4692.5,0.001]
[1757775145529,9.8169216,4692.6,4692.5,0.001]
[1757775145735,10.39111708,4692.6,4692.5,0.001]
[1757775146356,9.8169216,4692.6,4692.5,0.001]
[1757775147065,12.8169216,4692.6,4692.5,0.001]
[1757775147226,15.51857114,4692.6,4692.5,0.001]
[1757775148344,16.66512801,4692.6,4692.5,0.001]
[1757775149370,15.517575,4692.6,4692.5,0.001]
[1757775150331,11.960575,4692.6,4692.5,0.001]
[1757775150531,15.517575,4692.6,4692.5,0.001]
[1757775153078,15.5167832,4692.6,4692.5,0.001]
[1757775153280,16.27970906,4692.6,4692.5,0.001]
[1757775155588,16.27940171,4692.6,4692.5,0.001]
[1757775156666,15.51647585,4692.6,4692.5,0.001]
[1757775157268,11.95947585,4692.6,4692.5,0.001]
[1757775157470,15.51647585,4692.6,4692.5,0.001]
[1757775158409,15.51427656,4692.6,4692.5,0.001]
[1757775158616,9.02858502,4692.6,4692.5,0.001]
[1757775158767,7.56722631,4692.6,4692.5,0.001]
[1757775159099,12.04552631,4692.6,4692.5,0.001]
[1757775159269,12.02557656,4692.6,4692.5,0.001]
[1757775159469,12.50677656,4692.6,4692.5,0.001]
[1757775159665,13.29877656,4692.6,4692.5,0.001]
[1757775162501,13.29861028,4692.6,4692.5,0.001]
[1757775165104,12.78219119,4692.6,4692.5,0.001]
[1757775167189,13.29882008,4692.6,4692.5,0.001]
[1757775168197,13.87062854,4692.6,4692.5,0.001]
[1757775168722,13.87072212,4692.6,4692.5,0.001]
[1757775170290,13.29891366,4692.6,4692.5,0.001]
[1757775171331,8.51401366,4692.6,4692.5,0.001]
[1757775171557,12.07101366,4692.6,4692.5,0.001]
[1757775171698,12.51811366,4692.6,4692.5,0.001]
[1757775172210,14.56131707,4692.6,4692.5,0.001]
[1757775172418,12.81792955,4692.6,4692.5,0.001]
[1757775172597,16.50828934,4692.6,4692.5,0.001]
[1757775173126,16.50853517,4692.6,4692.5,0.001]
[1757775173328,17.27146129,4692.6,4692.5,0.001]
[1757775174224,9.8345015,4692.6,4692.5,0.001]
[1757775174536,9.06122539,4692.6,4692.5,0.001]
[1757775174692,12.81817564,4692.6,4692.5,0.001]
[1757775175031,13.30737564,4692.6,4692.5,0.001]
[1757775178842,13.1082629,4692.6,4692.5,0.001]
[1757775179142,13.30760781,4692.6,4692.5,0.001]
[1757775182148,13.30660781,4692.6,4692.5,0.001]
[1757775182513,9.75060781,4692.6,4692.5,0.001]
[1757775182715,13.30660781,4692.6,4692.5,0.001]
[1757775183249,9.75060781,4692.6,4692.5,0.001]
[1757775183548,13.30660781,4692.6,4692.5,0.001]
[1757775184640,9.75060781,4692.6,4692.5,0.001]
[1757775184814,13.30660781,4692.6,4692.5,0.001]
[1757775185214,13.3067853,4692.6,4692.5,0.001]
[1757775186168,19.46103093,4692.6,4692.5,0.001]
[1757775189675,20.61017184,4692.6,4692.5,0.001]
[1757775189887,19.46103093,4692.6,4692.5,0.001]
[1757775191774,13.1418198,4692.6,4692.5,0.001]
[1757775191960,15.63733093,4692.6,4692.5,0.001]
[1757775192577,16.42933093,4692.6,4692.5,0.001]
[1757775192746,16.72883093,4692.6,4692.5,0.001]
[1757775193146,17.21803093,4692.6,4692.5,0.001]
[1757775194477,17.21879027,4692.6,4692.5,0.001]
[1757775195661,17.21891111,4692.6,4692.5,0.001]
[1757775195862,13.66391111,4692.6,4692.5,0.001]
[1757775196095,17.21891111,4692.6,4692.5,0.001]
[1757775196306,18.36794561,4692.6,4692.5,0.001]
[1757775202018,18.36797128,4692.6,4692.5,0.001]
[1757775202484,14.81297128,4692.6,4692.5,0.001]
[1757775202679,18.36797128,4692.6,4692.5,0.001]
[1757775203311,18.36795623,4692.6,4692.5,0.001]
[1757775208611,18.37009979,4692.6,4692.5,0.001]
[1757775209411,18.17063404,4692.6,4692.5,0.001]
[1757775209614,18.37011561,4692.6,4692.5,0.001]
[1757775212114,14.81511561,4692.6,4692.5,0.001]
[1757775212445,18.36911561,4692.6,4692.5,0.001]
[1757775213109,20.61111561,4692.6,4692.5,0.001]
[1757775213317,17.22008111,4692.6,4692.5,0.001]
[1757775220125,17.2202158,4692.6,4692.5,0.001]
[1757775224256,2.92324187,4692.1,4692.0,0.001]
[1757775224458,11.02176884,4692.1,4692.0,0.001]
[1757775224783,11.95959033,4692.1,4692.0,0.001]
[1757775225379,13.59559033,4692.1,4692.0,0.001]
[1757775225682,13.77239033,4692.1,4692.0,0.001]
[1757775228685,10.21939033,4692.1,4692.0,0.001]
[1757775228889,13.77239033,4692.1,4692.0,0.001]
[1757775231484,14.21329033,4692.1,4692.0,0.001]
[1757775235877,14.21333798,4692.1,4692.0,0.001]
[1757775236467,17.71280859,4692.1,4692.0,0.001]
[1757775237596,17.41710859,4692.1,4692.0,0.001]
[1757775238288,18.18700859,4692.1,4692.0,0.001]
[1757775239309,14.63400859,4692.1,4692.0,0.001]
[1757775239471,18.18700859,4692.1,4692.0,0.001]
[1757775239671,18.18722159,4692.1,4692.0,0.001]
[1757775240903,17.42057549,4692.1,4692.0,0.001]
[1757775241106,18.18727936,4692.1,4692.0,0.001]
[1757775241289,17.42057549,4692.1,4692.0,0.001]
[1757775241497,18.18728313,4692.1,4692.0,0.001]
[1757775241692,17.42057549,4692.1,4692.0,0.001]
[1757775242404,18.18728213,4692.1,4692.0,0.001]
[1757775242605,16.94637549,4692.1,4692.0,0.001]
[1757775242783,10.21970326,4692.1,4692.0,0.001]
[1757775242988,13.77170326,4692.1,4692.0,0.001]
[1757775243715,14.50830326,4692.1,4692.0,0.001]
[1757775244195,14.98250326,4692.1,4692.0,0.001]
[1757775244912,14.98250601,4692.1,4692.0,0.001]
[1757775250595,14.21580763,4692.1,4692.0,0.001]
[1757775255811,14.21581047,4692.1,4692.0,0.001]
[1757775256035,14.21581311,4692.1,4692.0,0.001]
[1757775261646,14.21481311,4692.1,4692.0,0.001]
[1757775263378,15.36478226,4692.1,4692.0,0.001]
[1757775265365,2.131469,4691.6,4691.5,0.001]
[1757775265526,11.01454818,4691.6,4691.5,0.001]
[1757775265730,12.23744818,4691.6,4691.5,0.001]
[1757775266260,11.1730322,4691.6,4691.5,0.001]
[1757775267384,2.9241507,4690.1,4690.0,0.001]
[1757775267672,15.09385267,4690.1,4690.0,0.001]
[1757775267829,15.60161942,4690.1,4690.0,0.001]
[1757775268147,16.60173901,4690.1,4690.0,0.001]
[1757775269330,17.17486822,4690.1,4690.0,0.001]
[1757775269555,18.70444371,4690.1,4690.0,0.001]
[1757775270267,18.1313145,4690.1,4690.0,0.001]
[1757775274734,21.33508511,4690.1,4690.0,0.001]
[1757775275670,18.1313145,4690.1,4690.0,0.001]
[1757775276073,18.12843643,4690.1,4690.0,0.001]
[1757775276273,18.70012529,4690.1,4690.0,0.001]
[1757775276769,21.9038959,4690.1,4690.0,0.001]
[1757775278947,10.72245468,4690.1,4690.0,0.001]
[1757775279146,17.44903148,4690.1,4690.0,0.001]
[1757775279480,17.64503643,4690.1,4690.0,0.001]
[1757775279681,18.12843643,4690.1,4690.0,0.001]
[1757775280097,14.57743643,4690.1,4690.0,0.001]
[1757775280300,18.12843643,4690.1,4690.0,0.001]
[1757775282808,16.90530243,4690.1,4690.0,0.001]
[1757775283101,13.35430243,4690.1,4690.0,0.001]
[1757775283317,8.51408643,4690.1,4690.0,0.001]
[1757775283599,11.51408643,4690.1,4690.0,0.001]
[1757775284004,10.60298038,4690.1,4690.0,0.1778]
[1757775285906,5.41598038,4690.1,4690.0,0.001]
[1757775286117,10.40447029,4690.1,4690.0,0.1778]
[1757775286272,5.41598038,4690.1,4690.0,0.1778]
[1757775286467,10.40447029,4690.1,4690.0,0.1778]
[1757775286683,5.41598038,4690.1,4690.0,0.1778]
[1757775286895,7.40447029,4690.1,4690.0,0.1778]
[1757775287085,7.60298038,4690.1,4690.0,0.1778]
[1757775288120,7.60298038,4690.1,4690.0,0.001]
[1757775289924,7.60298038,4690.1,4690.0,0.1778]
[1757775290215,4.05198038,4690.1,4690.0,0.1778]
[1757775290422,7.40447029,4690.1,4690.0,0.1778]
[1757775290600,7.60298038,4690.1,4690.0,0.1778]
[1757775291191,4.05198038,4690.1,4690.0,0.1778]
[1757775291422,7.40447029,4690.1,4690.0,0.1778]
[1757775291598,7.60298038,4690.1,4690.0,0.1778]
[1757775292620,7.60298038,4690.1,4690.0,0.001]
[1757775292822,4.05198038,4690.1,4690.0,0.001]
[1757775293027,7.40447029,4690.1,4690.0,0.001]
[1757775293203,7.60298038,4690.1,4690.0,0.001]
[1757775294223,5.47082968,4690.1,4690.0,0.001]
[1757775294527,7.40447029,4690.1,4690.0,0.001]
[1757775294728,7.60298038,4690.1,4690.0,0.001]
[1757775297436,4.05198038,4690.1,4690.0,0.001]
[1757775297641,7.40347029,4690.1,4690.0,0.001]
[1757775297937,7.60198038,4690.1,4690.0,0.001]
[1757775299037,8.84498038,4690.1,4690.0,0.001]
[1757775299246,8.04768038,4690.1,4690.0,0.001]
[1757775302003,7.60198038,4690.1,4690.0,0.001]
[1757775302839,11.96440055,4690.1,4690.0,0.001]
[1757775303042,12.72884903,4690.1,4690.0,0.001]
[1757775303246,12.2702281,4690.1,4690.0,0.001]
[1757775303540,11.93149426,4690.1,4690.0,0.001]
[1757775304206,12.72879426,4690.1,4690.0,0.001]
[1757775304806,9.17879426,4690.1,4690.0,0.001]
[1757775305047,12.2702281,4690.1,4690.0,0.001]
[1757775305250,12.72879426,4690.1,4690.0,0.001]
[1757775305545,7.62996671,4690.1,4690.0,0.001]
[1757775305724,7.72140055,4690.1,4690.0,0.001]
[1757775305925,7.60198038,4690.1,4690.0,0.001]
[1757775306321,4.05198038,4690.1,4690.0,0.001]
[1757775306511,8.04768038,4690.1,4690.0,0.001]
[1757775307335,8.16715823,4690.1,4690.0,0.001]
[1757775308154,4.17145823,4690.1,4690.0,0.001]
[1757775308325,7.60198038,4690.1,4690.0,0.001]
[1757775308647,7.72145823,4690.1,4690.0,0.001]
[1757775308826,7.60263528,4690.1,4690.0,0.001]
[1757775309022,4.05263528,4690.1,4690.0,0.001]
[1757775309344,9.5099637,4690.1,4690.0,0.001]
[1757775309647,9.62946299,4690.1,4690.0,0.001]
[1757775310549,8.96513457,4690.1,4690.0,0.001]
[1757775310751,8.48103457,4690.1,4690.0,0.001]
[1757775311255,8.96513457,4690.1,4690.0,0.001]
[1757775312454,9.16460467,4690.1,4690.0,0.001]
[1757775314854,9.07928508,4690.1,4690.0,0.001]
[1757775315155,10.69516183,4690.1,4690.0,0.001]
[1757775315348,11.15372799,4690.1,4690.0,0.001]
[1757775316149,11.15413005,4690.1,4690.0,0.001]
[1757775317468,11.7274618,4690.1,4690.0,0.001]
[1757775323883,11.52801604,4690.1,4690.0,0.001]
[1757775324075,11.72760743,4690.1,4690.0,0.001]
[1757775324664,11.15427568,4690.1,4690.0,0.001]
[1757775326177,14.15427568,4690.1,4690.0,0.001]
[1757775326359,14.23958672,4690.1,4690.0,0.001]
[1757775326564,14.81436333,4690.1,4690.0,0.001]
[1757775327554,14.29568126,4690.1,4690.0,0.001]
[1757775327782,14.81458174,4690.1,4690.0,0.001]
[1757775328284,5.69877768,4690.1,4690.0,0.1778]
[1757775328585,1.65877711,4690.1,4690.0,0.1778]
[1757775328749,5.20777711,4690.1,4690.0,0.1778]
[1757775329185,5.0082,4690.1,4690.0,0.1778]
[1757775329388,0.1064,4690.2,4690.0,0.1778]
[1757775329700,3.549,4690.1,4690.0,0.1778]
[1757775329857,0.19957711,4690.7,4690.0,0.1778]
[1757775330183,3.549,4690.6,4690.0,0.1778]
[1757775330382,0.002,4691.0,4690.0,0.1778]
[1757775330383,3.549,4690.5,4690.0,0.1778]
[1757775330587,3.549,4690.4,4690.0,0.1778]
[1757775331989,3.549,4690.4,4690.0,0.001]
[1757775334302,0.002,4691.0,4690.0,0.001]
[1757775334492,3.549,4690.9,4690.0,0.001]
[1757775335213,3.9859,4690.9,4690.0,0.001]
[1757775335583,6.11769382,4690.9,4690.0,0.001]
[1757775335782,3.9859,4690.9,4690.0,0.001]
[1757775337297,6.11771024,4690.9,4690.0,0.001]
[1757775337500,6.58731024,4690.9,4690.0,0.001]
[1757775338296,2.13183378,4690.8,4690.0,0.001]
[1757775338883,0.4369,4690.7,4690.0,0.001]
[1757775339083,3.548,4690.6,4690.0,0.001]
[1757775339917,0.1064,4690.5,4690.0,0.001]
[1757775340077,3.6544,4690.5,4690.0,0.001]
[1757775341612,0.1064,4690.5,4690.0,0.001]
[1757775341907,3.548,4690.4,4690.0,0.001]
[1757775345439,0.1064,4690.5,4690.0,0.001]
[1757775346436,0.569,4690.5,4690.0,0.001]
[1757775347824,0.1064,4690.5,4690.0,0.001]
[1757775348025,0.4626,4690.4,4690.0,0.001]
[1757775351757,0.4698,4690.3,4690.0,0.001]
[1757775353051,0.4698,4690.2,4690.0,0.001]
[1757775356190,0.4698,4690.1,4690.0,0.001]
[1757775357488,1.2714,4690.1,4690.0,0.001]
[1757775359873,0.4698,4690.1,4690.0,0.001]
[1757775360288,0.4698,4690.4,4690.0,0.001]
[1757775360591,0.4698,4690.3,4690.0,0.001]
[1757775360757,0.9576,4690.3,4690.0,0.001]
[1757775360960,0.1084,4690.5,4690.0,0.001]
[1757775361259,0.9576,4690.2,4690.0,0.001]
[1757775361872,0.4698,4690.2,4690.0,0.001]
[1757775362858,0.5962,4690.5,4690.0,0.001]
[1757775362859,0.4698,4690.1,4690.0,0.001]
[1757775363200,0.4698,4690.1,4690.0,0.02232196]
[1757775363362,0.4698,4690.1,4690.0,0.1074]
[1757775369226,0.002,4690.9,4690.1,30.792]
[1757775369381,0.002,4691.4,4690.3,0.792]
[1757775369720,0.002,4691.4,4690.7,0.792]
[1757775369894,0.002,4691.4,4690.8,0.02131832]
[1757775370098,0.002,4691.4,4690.9,1.636]
[1757775370300,0.002,4691.4,4691.1,3.0]
[1757775370505,0.002,4691.5,4691.2,0.8133165]
[1757775370714,0.002,4691.9,4691.2,0.8133165]
[1757775370895,0.002,4691.9,4691.3,0.792]
[1757775371219,0.002,4691.9,4691.4,0.02131559]
[1757775371417,0.002,4691.9,4691.5,4.38649605]
[1757775371724,0.002,4692.5,4691.7,3.792]
[1757775371917,0.002,4692.5,4691.9,0.792]
[1757775372101,0.002,4692.5,4691.9,4.338]
[1757775373220,0.4878,4692.4,4691.8,1.635]
[1757775373523,0.3158,4692.0,4691.9,0.22294961]
[1757775373817,0.3158,4692.0,4691.9,3.22294961]
[1757775374115,1.2734,4692.0,4691.9,3.22294961]
[1757775377197,0.9596,4692.0,4691.9,3.22294961]
[1757775377404,0.4718,4692.0,4691.9,3.22294961]
[1757775377730,0.002,4692.0,4691.9,3.22294961]
[1757775378243,0.002,4692.0,4691.9,3.24426293]
[1757775378546,0.4461,4692.0,4691.9,3.22294961]
[1757775379036,0.002,4692.0,4691.9,3.22294961]